[Event "EIWCC 2017"]
[Site "Riga"]
[Date "2017.04.15"]
[Round "5"]
[White "Khomeriki, Nino"]
[Black "Gueci, Tea"]
[Result "1-0"]
[ECO "A07"]
[WhiteElo "2308"]
[BlackElo "2132"]
[Annotator "NA"]
[PlyCount "101"]
[EventDate "2017.??.??"]
[EventType "swiss"]
[EventCountry "LAT"]
[SourceTitle "playchess.com"]
[Source "ChessBase"]
[SourceQuality "1"]
[TimeControl "40/5400+30:1800+30"]

1. Nf3 {[%emt 0:00:46]} d5 {[%emt 0:00:05]} 2. g3 {[%emt 0:04:11]} Nf6 {[%emt 0:00:08]} 3. Bg2 {[%emt 0:00:07]} c6 {[%emt 0:00:06]} 4. O-O {[%emt 0:00:19]} Bg4 {[%emt 0:00:07]} 5. d3 {[%emt 0:00:30]} Nbd7 {[%emt 0:00:08]} 6. Nbd2 {[%emt 0:00:07]} e5 {[%emt 0:00:08]} 7. h3 {[%emt 0:00:05]} Bh5 {[%emt 0:00:04]} 8. e4 {[%emt 0:00:05]} dxe4 {[%emt 0:00:41]} 9. dxe4 {[%emt 0:01:15]} Bc5 {[%emt 0:00:20]} 10. Qe2 {[%emt 0:01:04]} O-O {[%emt 0:00:34]} 11. a4 {[%emt 0:00:27]} a5 {[%emt 0:02:07]} 12. Rd1 {[%emt 0:08:34]} Qc7 {[%emt 0:05:36]} 13. Nc4 {[%emt 0:11:02]} b6 {[%emt 0:04:45]} 14. Bd2 {[%emt 0:01:34]} Rfe8 {[%emt 0:13:29]} 15. Bc3 {[%emt 0:01:14]} Bg6 {[%emt 0:06:04]} 16. Nh4 $14 {[%emt 0:08:15]} Bb4 {[%emt 0:05:49]} 17. Bxb4 {[%emt 0:13:19]} axb4 {[%emt 0:00:02]} 18. Qd2 {[%emt 0:01:14]} c5 {[%emt 0:17:01]} 19. f3 {[%emt 0:09:07]} Red8 {[%emt 0:08:17]} 20. Qd6 {[%emt 0:03:19]} Qxd6 {[%emt 0:01:07]} 21. Nxd6 {[%emt 0:00:07]} Nh5 {[%emt 0:05:48]} 22. Nb7 {[%emt 0:02:49]} Rdb8 {[%emt 0:02:48]} 23. Rxd7 {[%emt 0:00:59]} Nf6 {[%emt 0:00:55]} 24. Rc7 {[%emt 0:17:33]} Ne8 {[%emt 0:04:49]} 25. Re7 {[%emt 0:00:33]} Ra7 {[%emt 0:05:42]} 26. Nxg6 {[%emt 0:06:30]} hxg6 {[%emt 0:00:28]} 27. Rd1 {[%emt 0:00:45]} Raxb7 {[%emt 0:00:41]} 28. Rxe5 {[%emt 0:00:06]} Kf8 {[%emt 0:01:07]} 29. Bf1 {[%emt 0:00:56]} Nc7 {[%emt 0:01:30]} 30. Rd7 {[%emt 0:04:08]} Ne6 {[%emt 0:00:17]} 31. Red5 {[%emt 0:01:39]} Nd4 {[%emt 0:05:02]} 32. Kf2 {[%emt 0:01:04]} Nxc2 {[%emt 0:01:21]} 33. Ba6 {[%emt 0:00:21]} Rxd7 {[%emt 0:00:55]} 34. Rxd7 {[%emt 0:00:02]} Nd4 {[%emt 0:00:50]} 35. Bc4 {[%emt 0:00:14]} Ne6 {[%emt 0:01:17]} 36. Ke3 {[%emt 0:00:13]} Nd8 {[%emt 0:01:14]} 37. f4 {[%emt 0:01:48]} Ke8 {[%emt 0:04:03]} 38. Rc7 {[%emt 0:01:23]} Kf8 {[%emt 0:01:11]} 39. Bd5 {[%emt 0:01:03]} Ne6 {[%emt 0:01:23]} 40. Rd7 {[%emt 0:00:00]} Rc8 {[%emt 0:01:54]} 41. b3 {[%emt 0:04:12]} Rb8 {[%emt 0:09:35]} 42. Kd3 {[%emt 0:02:33]} b5 {[%emt 0:03:20]} 43. axb5 {[%emt 0:01:25]} Rxb5 {[%emt 0:01:07]} 44. f5 {[%emt 0:04:59]} gxf5 {[%emt 0:03:58]} 45. exf5 {[%emt 0:00:05]} Nd4 {[%emt 0:00:54]} 46. Rxf7+ {[%emt 0:00:15]} Kg8 {[%emt 0:01:59]} 47. g4 {[%emt 0:00:28]} Kh8 {[%emt 0:01:06]} 48. Rf8+ {[%emt 0:01:55]} Kh7 {[%emt 0:00:08]} 49. g5 {[%emt 0:00:12]} Rb6 {[%emt 0:02:25]} 50. Bg8+ {[%emt 0:09:59]} Kh8 {[%emt 0:00:15]} 51. g6 {[%emt 0:00:28]} 1-0

[Event "EIWCC 2017"]
[Site "Riga"]
[Date "2017.04.15"]
[Round "5"]
[White "Fuchs, Judith"]
[Black "Vega Gutierrez, Sabrina"]
[Result "0-1"]
[ECO "B33"]
[WhiteElo "2274"]
[BlackElo "2413"]
[Annotator "NA"]
[PlyCount "104"]
[EventDate "2017.??.??"]
[EventType "swiss"]
[EventCountry "LAT"]
[SourceTitle "playchess.com"]
[Source "ChessBase"]
[SourceQuality "1"]
[TimeControl "40/5400+30:1800+30"]

1. e4 {[%emt 0:00:00]} c5 {[%emt 0:00:12]} 2. Nf3 {[%emt 0:00:00]} Nc6 {[%emt 0:00:08]} 3. d4 {[%emt 0:00:00]} cxd4 {[%emt 0:00:08]} 4. Nxd4 {[%emt 0:00:00]} Nf6 {[%emt 0:00:07]} 5. Nc3 {[%emt 0:00:05]} e5 {[%emt 0:00:08]} 6. Ndb5 {[%emt 0:00:11]} d6 {[%emt 0:00:12]} 7. Bg5 {[%emt 0:00:19]} a6 {[%emt 0:00:13]} 8. Na3 {[%emt 0:00:06]} b5 {[%emt 0:00:07]} 9. Nd5 {[%emt 0:00:13]} Be7 {[%emt 0:00:16]} 10. Bxf6 {[%emt 0:00:17]} Bxf6 {[%emt 0:00:09]} 11. c3 {[%emt 0:00:16]} Ne7 {[%emt 0:00:28]} 12. Nxf6+ {[%emt 0:00:29]} gxf6 {[%emt 0:00:09]} 13. Be2 {[%emt 0:00:33]} f5 {[%emt 0:00:20]} 14. exf5 {[%emt 0:01:35] B33: Sicilian: Pelikan and Sveshnikov Variations} Bxf5 {[%emt 0:00:13]} 15. Bf3 {[%emt 0:04:55]} (15. O-O O-O 16. Qd2 Be6 17. c4 bxc4 18. Nxc4 Nf5 19. Bd3 Nd4 20. f4 Bxc4 21. Bxc4 d5 22. Bb3 {½-½ (22) Oll,L (2625)-Krasenkow,M (2615) Vilnius 1997}) 15... d5 {[%emt 0:02:05]} 16. Nc2 {[%emt 0:12:56]} O-O $146 {[%emt 0:06:32]} (16... Be6 17. a4 O-O 18. O-O Qb6 19. Qd2 f6 20. Rfd1 Kg7 21. axb5 axb5 {½-½ (54) Marx,J (1836)-Specht,C (1888) Willingen 2007}) 17. O-O {[%emt 0:05:02]} Qd7 {[%emt 0:04:34]} 18. Re1 {[%emt 0:06:03]} f6 {[%emt 0:01:25]} 19. Qd2 {[%emt 0:06:31]} Rfd8 {[%emt 0:08:23]} 20. h3 {[%emt 0:09:19]} Kh8 {[%emt 0:20:45]} 21. Ne3 {[%emt 0:06:01]} Bxh3 {[%emt 0:05:20]} 22. a4 {[%emt 0:23:26]} Be6 {[%emt 0:07:39]} 23. Qe2 {[%emt 0:03:10]} Ng6 {[%emt 0:03:01]} 24. g3 {[%emt 0:03:50]} e4 {[%emt 0:01:57]} 25. Bg4 {[%emt 0:03:49]} f5 $17 {[%emt 0:07:49]} ({Don't play} 25... bxa4 26. Bxe6 Qxe6 27. Qh5 $15 (27. Rxa4 Ne5 28. Kg2 Nd3 $17)) 26. Bh5 {[%emt 0:01:16]} f4 {[%emt 0:00:06]} 27. Bxg6 {[%emt 0:03:42]} f3 {[%emt 0:18:20]} 28. Qd2 {[%emt 0:02:34]} hxg6 {[%emt 0:00:03]} 29. Qd4+ {[%emt 0:00:50]} Qg7 {[%emt 0:05:51]} 30. Red1 {[%emt 0:01:45]} Qxd4 {[%emt 0:01:59]} 31. Rxd4 {[%emt 0:02:03]} Kg7 {[%emt 0:00:02]} 32. axb5 {[%emt 0:00:30]} axb5 {[%emt 0:00:06]} 33. Rxa8 {[%emt 0:01:19]} Rxa8 {[%emt 0:00:03]} 34. Kf1 {[%emt 0:02:02]} Ra2 {[%emt 0:02:55]} 35. Nd1 {[%emt 0:00:30]} Kf6 {[%emt 0:00:48]} 36. Ke1 {[%emt 0:00:38]} Ke5 {[%emt 0:00:04]} 37. Rb4 {[%emt 0:01:20]} Bd7 {[%emt 0:01:28]} 38. Rd4 {[%emt 0:00:33]} Bc6 {[%emt 0:01:47]} 39. Kd2 {[%emt 0:00:33]} Ra8 {[%emt 0:00:14]} 40. Ke3 {[%emt 0:00:00]} Rh8 {[%emt 0:00:35]} 41. Kd2 {[%emt 0:03:44]} Rh1 {[%emt 0:01:58]} 42. Ne3 {[%emt 0:01:36]} Kd6 {[%emt 0:05:44]} 43. Rb4 {[%emt 0:02:20]} Kc5 {[%emt 0:00:05]} 44. Rd4 {[%emt 0:00:38]} Rh2 {[%emt 0:01:38]} 45. Ke1 {[%emt 0:01:18]} Bb7 {[%emt 0:04:12]} 46. Nd1 {[%emt 0:07:05]} Rh1+ {[%emt 0:03:11]} 47. Kd2 {[%emt 0:00:04]} Rf1 {[%emt 0:00:17]} 48. Rb4 {[%emt 0:02:12]} e3+ {[%emt 0:07:23]} 49. fxe3 {[%emt 0:03:25]} g5 {[%emt 0:00:13]} 50. Rd4 {[%emt 0:01:31]} Bc8 {[%emt 0:03:24]} 51. b4+ {[%emt 0:08:45]} Kc6 {[%emt 0:00:14]} 52. g4 {[%emt 0:01:11]} f2 {[%emt 0:02:19]} 0-1

[Event "EIWCC 2017"]
[Site "Riga"]
[Date "2017.04.15"]
[Round "5"]
[White "Ozturk, Kubra"]
[Black "Sazonova, Anastasia"]
[Result "0-1"]
[ECO "D12"]
[WhiteElo "2261"]
[BlackElo "2143"]
[Annotator "NA"]
[PlyCount "96"]
[EventDate "2017.??.??"]
[EventType "swiss"]
[EventCountry "LAT"]
[SourceTitle "playchess.com"]
[Source "ChessBase"]
[SourceQuality "1"]
[TimeControl "40/5400+30:1800+30"]

1. d4 {[%emt 0:00:00]} d5 {[%emt 0:00:10]} 2. c4 {[%emt 0:00:00]} c6 {[%emt 0:00:09]} 3. Nf3 {[%emt 0:00:01]} Nf6 {[%emt 0:00:09]} 4. e3 {[%emt 0:00:14]} Bf5 {[%emt 0:00:11]} 5. Nc3 {[%emt 0:00:14]} e6 {[%emt 0:00:15]} 6. Nh4 {[%emt 0:00:14]} Be4 {[%emt 0:00:09]} 7. f3 {[%emt 0:00:13]} Bg6 {[%emt 0:00:07]} 8. Qb3 {[%emt 0:00:10]} Qc7 {[%emt 0:00:13]} 9. Bd2 {[%emt 0:00:10]} Be7 {[%emt 0:00:19]} 10. Nxg6 {[%emt 0:00:31]} hxg6 {[%emt 0:00:09]} 11. cxd5 {[%emt 0:00:15]} cxd5 {[%emt 0:00:37]} 12. O-O-O {[%emt 0:00:15]} Nc6 {[%emt 0:00:42]} 13. Kb1 {[%emt 0:00:14]} O-O {[%emt 0:00:56]} 14. Rc1 {[%emt 0:00:28]} Rfc8 {[%emt 0:06:10]} 15. Qd1 {[%emt 0:00:56]} a6 {[%emt 0:11:10]} 16. g4 {[%emt 0:04:25]} Qd8 {[%emt 0:10:34]} 17. h4 {[%emt 0:11:22]} Na5 {[%emt 0:09:32]} 18. f4 {[%emt 0:15:54]} b5 {[%emt 0:07:27]} 19. g5 {[%emt 0:08:17]} Nh5 {[%emt 0:02:54]} 20. Rh2 {[%emt 0:23:46]} Nc4 {[%emt 0:03:29]} 21. f5 {[%emt 0:07:11]} exf5 {[%emt 0:09:04]} 22. Qf3 {[%emt 0:01:49]} Bd6 {[%emt 0:07:38]} 23. Rg2 {[%emt 0:03:22]} Bb4 {[%emt 0:01:04]} 24. Be1 {[%emt 0:07:07]} Bxc3 {[%emt 0:05:51]} 25. Rxc3 {[%emt 0:02:34]} Qd6 {[%emt 0:01:56]} 26. Bd3 {[%emt 0:01:26]} Qe6 {[%emt 0:00:54]} 27. Re2 {[%emt 0:02:19]} Nd6 {[%emt 0:06:03]} 28. Rec2 {[%emt 0:00:56]} Rxc3 {[%emt 0:01:47]} 29. Rxc3 {[%emt 0:00:24]} Re8 {[%emt 0:01:09]} 30. Bf2 {[%emt 0:02:48]} Nc4 {[%emt 0:03:32]} 31. Bxc4 {[%emt 0:00:31]} bxc4 {[%emt 0:00:13]} 32. Kc1 {[%emt 0:00:57]} Rb8 {[%emt 0:00:42]} 33. Rc2 {[%emt 0:03:03]} Re8 {[%emt 0:01:04]} 34. Rc3 {[%emt 0:00:04]} f4 {[%emt 0:01:31]} 35. exf4 {[%emt 0:00:13]} Qf5 {[%emt 0:00:16]} 36. Re3 {[%emt 0:01:28]} Re4 {[%emt 0:00:43]} 37. Rxe4 {[%emt 0:00:32]} dxe4 {[%emt 0:00:15]} 38. Qe3 {[%emt 0:00:50]} Nxf4 {[%emt 0:00:29]} 39. Bg3 {[%emt 0:00:12]} Nd3+ {[%emt 0:00:31]} 40. Kc2 {[%emt 0:00:00]} Qb5 {[%emt 0:03:57]} 41. b3 {[%emt 0:02:11]} cxb3+ {[%emt 0:02:02]} 42. axb3 {[%emt 0:00:02]} Qc6+ {[%emt 0:00:22]} 43. Kd1 {[%emt 0:00:55]} Qc3 {[%emt 0:01:43]} 44. Ke2 {[%emt 0:02:54]} Nc1+ {[%emt 0:00:55]} 45. Kf2 {[%emt 0:00:03]} Qc2+ {[%emt 0:00:21]} 46. Kf1 {[%emt 0:00:23]} Nxb3 {[%emt 0:00:24]} 47. Bf4 {[%emt 0:00:16]} Qd1+ {[%emt 0:02:25]} 48. Kg2 {[%emt 0:00:05]} Qd3 {[%emt 0:02:12]} 0-1

[Event "EIWCC 2017"]
[Site "Riga"]
[Date "2017.04.15"]
[Round "5"]
[White "Sedina, Elena"]
[Black "Ziaziulkina, Nastassia"]
[Result "1/2-1/2"]
[ECO "B51"]
[WhiteElo "2253"]
[BlackElo "2387"]
[Annotator "NA"]
[PlyCount "31"]
[EventDate "2017.??.??"]
[EventType "swiss"]
[EventCountry "LAT"]
[SourceTitle "playchess.com"]
[Source "ChessBase"]
[SourceQuality "1"]
[TimeControl "40/5400+30:1800+30"]

1. e4 {[%emt 0:00:45]} c5 {[%emt 0:00:23]} 2. Nf3 {[%emt 0:00:20]} d6 {[%emt 0:00:06]} 3. Bb5+ {[%emt 0:00:43]} Nd7 {[%emt 0:00:11]} 4. d4 {[%emt 0:00:45]} cxd4 {[%emt 0:00:34]} 5. Qxd4 {[%emt 0:00:10]} a6 {[%emt 0:00:51]} 6. Bxd7+ {[%emt 0:00:32]} Bxd7 {[%emt 0:00:05]} 7. c4 {[%emt 0:03:34]} Nf6 {[%emt 0:03:45]} 8. Bg5 {[%emt 0:05:10]} e6 {[%emt 0:01:08]} 9. Nc3 {[%emt 0:01:56]} Bc6 {[%emt 0:03:16]} 10. O-O {[%emt 0:09:18]} Be7 {[%emt 0:01:05]} 11. Rfe1 {[%emt 0:19:37]} O-O {[%emt 0:21:26]} 12. a4 {[%emt 0:06:36]} Rc8 {[%emt 0:03:22]} 13. h3 {[%emt 0:04:19]} Qa5 {[%emt 0:11:16]} 14. Qd2 {[%emt 0:24:43]} Kh8 {[%emt 0:13:47]} 15. b3 {[%emt 0:01:55]} h6 {[%emt 0:11:04]} 16. Bf4 {[%emt 0:02:20]} 1/2-1/2

[Event "EIWCC 2017"]
[Site "Riga"]
[Date "2017.04.15"]
[Round "5"]
[White "Narva, Mai"]
[Black "Beydullayeva, Govhar"]
[Result "0-1"]
[ECO "B92"]
[WhiteElo "2249"]
[BlackElo "2054"]
[Annotator "NA"]
[PlyCount "74"]
[EventDate "2017.??.??"]
[EventType "swiss"]
[EventCountry "LAT"]
[SourceTitle "playchess.com"]
[Source "ChessBase"]
[SourceQuality "1"]
[TimeControl "40/5400+30:1800+30"]

1. e4 {[%emt 0:00:00]} c5 {[%emt 0:00:08]} 2. Nf3 {[%emt 0:00:00]} d6 {[%emt 0:00:04]} 3. d4 {[%emt 0:00:36]} cxd4 {[%emt 0:00:12]} 4. Nxd4 {[%emt 0:00:09]} Nf6 {[%emt 0:00:17]} 5. Nc3 {[%emt 0:00:12]} a6 {[%emt 0:00:04]} 6. Be2 {[%emt 0:00:25]} e5 {[%emt 0:00:05]} 7. Nb3 {[%emt 0:00:13]} Be7 {[%emt 0:00:07]} 8. O-O {[%emt 0:00:38]} O-O {[%emt 0:00:04]} 9. a4 {[%emt 0:02:26]} Nc6 {[%emt 0:00:25]} 10. Be3 {[%emt 0:01:23]} Be6 {[%emt 0:00:42]} 11. Bf3 {[%emt 0:02:56]} Nb4 {[%emt 0:02:39]} 12. a5 {[%emt 0:06:09]} Rc8 {[%emt 0:09:30]} 13. Bb6 {[%emt 0:09:10]} Qd7 {[%emt 0:00:12]} 14. Re1 {[%emt 0:01:03]} Bd8 {[%emt 0:17:02]} 15. Bxd8 {[%emt 0:06:55]} Rfxd8 {[%emt 0:00:06]} 16. Qe2 {[%emt 0:04:57]} Bc4 {[%emt 0:12:48]} 17. Qd2 {[%emt 0:01:26]} Qe6 {[%emt 0:03:28]} 18. Ra3 {[%emt 0:03:13]} d5 {[%emt 0:06:24]} 19. exd5 {[%emt 0:03:55]} Nbxd5 {[%emt 0:04:42]} 20. Nxd5 {[%emt 0:05:17]} Bxd5 {[%emt 0:00:20]} 21. Bxd5 {[%emt 0:00:35]} Rxd5 {[%emt 0:05:10]} 22. Qe2 {[%emt 0:00:35]} Qc6 {[%emt 0:04:31]} 23. c3 {[%emt 0:01:32]} Re8 {[%emt 0:00:32]} 24. Nd2 {[%emt 0:01:40]} Nd7 {[%emt 0:09:45]} 25. c4 {[%emt 0:04:15]} Rd4 {[%emt 0:01:28]} 26. Raa1 {[%emt 0:03:06]} f5 {[%emt 0:05:53]} 27. h3 {[%emt 0:03:02]} e4 {[%emt 0:02:01]} 28. b4 {[%emt 0:05:36]} Ne5 {[%emt 0:01:24]} 29. b5 {[%emt 0:03:36]} Qd7 {[%emt 0:01:38]} 30. Red1 {[%emt 0:01:22]} Rd8 {[%emt 0:00:52]} 31. bxa6 {[%emt 0:07:43]} bxa6 {[%emt 0:00:18]} 32. Ra2 {[%emt 0:01:12]} Nxc4 {[%emt 0:00:25]} 33. Nxc4 {[%emt 0:03:22]} Rxd1+ {[%emt 0:00:07]} 34. Kh2 {[%emt 0:00:06]} Qd3 {[%emt 0:02:51]} 35. Ne3 {[%emt 0:03:11]} Qxe2 {[%emt 0:00:11]} 36. Rxe2 {[%emt 0:00:08]} R1d2 {[%emt 0:00:13]} 37. Rxd2 {[%emt 0:00:34]} Rxd2 {[%emt 0:00:04]} 0-1

[Event "EIWCC 2017"]
[Site "Riga"]
[Date "2017.04.15"]
[Round "5"]
[White "Komiagina, Maria"]
[Black "Balajayeva, Khanim"]
[Result "1/2-1/2"]
[ECO "C45"]
[WhiteElo "2247"]
[BlackElo "2196"]
[Annotator "NA"]
[PlyCount "82"]
[EventDate "2017.??.??"]
[EventType "swiss"]
[EventCountry "LAT"]
[SourceTitle "playchess.com"]
[Source "ChessBase"]
[SourceQuality "1"]
[TimeControl "40/5400+30:1800+30"]

1. e4 {[%emt 0:00:00]} e5 {[%emt 0:00:10]} 2. Nf3 {[%emt 0:00:00]} Nc6 {[%emt 0:00:06]} 3. d4 {[%emt 0:00:00]} exd4 {[%emt 0:00:07]} 4. Nxd4 {[%emt 0:00:00]} Nf6 {[%emt 0:00:07]} 5. Nxc6 {[%emt 0:00:00]} bxc6 {[%emt 0:00:03]} 6. e5 {[%emt 0:00:04]} Qe7 {[%emt 0:00:08]} 7. Qe2 {[%emt 0:00:06]} Nd5 {[%emt 0:00:07]} 8. c4 {[%emt 0:00:06]} Nb6 {[%emt 0:00:03]} 9. Nd2 {[%emt 0:01:31]} Qe6 {[%emt 0:01:30]} 10. g3 {[%emt 0:02:35]} a5 {[%emt 0:11:40]} 11. Bg2 {[%emt 0:02:33]} Bb4 {[%emt 0:01:07]} 12. O-O {[%emt 0:01:11]} Bxd2 {[%emt 0:08:24] LiveBook: 3 Games} 13. Bxd2 {[%emt 0:00:09]} Qxc4 {[%emt 0:03:40]} 14. Qh5 {[%emt 0:00:26]} Nd5 {[%emt 0:15:55]} 15. Rfe1 {[%emt 0:02:22]} Ne7 {[%emt 0:09:47] [#]} 16. Qg5 $16 {[%emt 0:07:15]} (16. e6 $1 $18 {Threatens to win with Qxf7+.} dxe6 17. Qg5) 16... Ng6 {[%emt 0:01:49]} 17. Rac1 {[%emt 0:03:23]} Qxa2 {[%emt 0:10:07]} 18. f4 {[%emt 0:05:57]} h6 {[%emt 0:02:07]} 19. Qh5 {[%emt 0:00:12]} Ne7 {[%emt 0:05:00]} 20. f5 {[%emt 0:05:00]} Qxb2 {[%emt 0:06:36]} 21. Bc3 {[%emt 0:02:59]} Qb5 {[%emt 0:00:51]} 22. Kh1 {[%emt 0:09:09]} Bb7 {[%emt 0:06:44]} 23. e6 {[%emt 0:04:38]} O-O-O {[%emt 0:02:13]} 24. Qxf7 {[%emt 0:07:42]} Nxf5 {[%emt 0:00:35]} 25. Rb1 {[%emt 0:12:21]} Qc5 {[%emt 0:02:01]} 26. Be5 {[%emt 0:06:46]} Rhf8 {[%emt 0:01:03]} 27. exd7+ {[%emt 0:01:04]} Rxd7 {[%emt 0:00:09]} 28. Qb3 {[%emt 0:01:23]} Qb4 {[%emt 0:00:50]} 29. Qe6 {[%emt 0:00:41]} Qe7 {[%emt 0:00:38]} 30. Qc4 {[%emt 0:00:34]} Nd6 {[%emt 0:01:19]} 31. Qa4 {[%emt 0:00:26]} Rf5 {[%emt 0:07:32]} 32. Bf4 {[%emt 0:04:55]} Rb5 {[%emt 0:00:41]} 33. Rbc1 {[%emt 0:03:10]} Qf7 {[%emt 0:00:27]} 34. Bxd6 {[%emt 0:07:58]} Rxd6 {[%emt 0:00:09]} 35. Rf1 {[%emt 0:00:16]} Qe7 {[%emt 0:00:49]} 36. Rce1 {[%emt 0:00:48]} Re5 {[%emt 0:00:31]} 37. Rxe5 {[%emt 0:00:14]} Qxe5 {[%emt 0:00:17]} 38. Rf8+ {[%emt 0:00:04]} Kd7 {[%emt 0:00:16]} 39. Rf1 {[%emt 0:04:28]} Kc8 {[%emt 0:02:47]} 40. Rf8+ {[%emt 0:00:00]} Kd7 {[%emt 0:00:02]} 41. Rf1 {[%emt 0:00:59]} Kc8 {[%emt 0:04:14]} 1/2-1/2

[Event "EIWCC 2017"]
[Site "Riga"]
[Date "2017.04.15"]
[Round "5"]
[White "Abdulla, Khayala"]
[Black "Melia, Salome"]
[Result "1/2-1/2"]
[ECO "B34"]
[WhiteElo "2241"]
[BlackElo "2400"]
[Annotator "ChessBase"]
[PlyCount "128"]
[EventDate "2017.??.??"]
[EventType "swiss"]
[EventCountry "LAT"]
[SourceTitle "playchess.com"]
[Source "ChessBase"]
[SourceQuality "1"]
[TimeControl "40/5400+30:1800+30"]

1. e4 {[%emt 0:00:00]} c5 {[%emt 0:00:09]} 2. Nf3 {[%emt 0:00:00]} Nc6 {[%emt 0:00:07]} 3. d4 {[%emt 0:00:04]} cxd4 {[%emt 0:00:08]} 4. Nxd4 {[%emt 0:00:05]} Nf6 {[%emt 0:00:04]} 5. Nc3 {[%emt 0:00:19]} e5 {[%emt 0:00:06]} 6. Ndb5 {[%emt 0:00:29]} d6 {[%emt 0:00:07]} 7. Nd5 {[%emt 0:00:56]} Nxd5 {[%emt 0:00:29]} 8. exd5 {[%emt 0:00:03]} Nb8 {[%emt 0:00:08]} 9. c4 {[%emt 0:00:04]} Be7 {[%emt 0:00:10]} 10. Be2 {[%emt 0:00:07]} O-O {[%emt 0:00:06]} 11. O-O {[%emt 0:00:07]} Bd7 {[%emt 0:00:30]} 12. Nc3 {[%emt 0:03:27]} f5 {[%emt 0:00:17]} 13. f4 {[%emt 0:01:42]} Bf6 {[%emt 0:00:44]} 14. Kh1 {[%emt 0:01:14]} Na6 {[%emt 0:01:45]} 15. Be3 {[%emt 0:01:42]} Nc5 {[%emt 0:05:08]} 16. b4 {[%emt 0:04:59]} exf4 {[%emt 0:04:00]} 17. Bd4 {[%emt 0:00:43]} Ne4 {[%emt 0:09:54]} 18. Nxe4 {[%emt 0:03:40]} Bxd4 {[%emt 0:01:33]} 19. Qxd4 {[%emt 0:00:59]} fxe4 {[%emt 0:00:03]} 20. Qxe4 {[%emt 0:00:19]} Qf6 {[%emt 0:09:43]} 21. c5 {[%emt 0:05:15]} Rae8 {[%emt 0:10:44]} 22. Qc4 {[%emt 0:01:07]} Kh8 {[%emt 0:08:21]} 23. Bf3 {[%emt 0:03:34]} g5 {[%emt 0:01:51]} 24. c6 {[%emt 0:21:34]} Bc8 {[%emt 0:00:41]} 25. cxb7 {[%emt 0:08:49]} Bxb7 {[%emt 0:03:45]} 26. Rae1 {[%emt 0:00:04]} Bc8 {[%emt 0:05:47]} 27. Rxe8 {[%emt 0:02:19]} Rxe8 {[%emt 0:00:47]} 28. Bh5 {[%emt 0:00:06]} Rf8 {[%emt 0:01:20]} 29. h3 {[%emt 0:04:14]} Qe5 {[%emt 0:02:56]} 30. Bf3 {[%emt 0:06:27]} Bf5 {[%emt 0:07:34]} 31. Qa6 {[%emt 0:03:12]} Rf7 {[%emt 0:01:30]} 32. Qc6 {[%emt 0:03:55]} Kg7 {[%emt 0:04:19]} 33. Qc1 {[%emt 0:05:17]} Re7 {[%emt 0:03:20]} 34. Qd2 {[%emt 0:02:58]} Kg6 {[%emt 0:08:57]} 35. Qd1 {[%emt 0:04:09]} Qc3 {[%emt 0:00:59]} 36. Bh5+ {[%emt 0:04:32]} Kh6 {[%emt 0:02:16]} 37. h4 {[%emt 0:04:51]} Qxb4 {[%emt 0:04:44]} 38. hxg5+ {[%emt 0:02:57]} Kxg5 {[%emt 0:00:11]} 39. Bf3 {[%emt 0:00:23]} Qc3 {[%emt 0:03:07]} 40. Rg1 {[%emt 0:00:00]} Kf6 {[%emt 0:01:15]} 41. Qa4 {[%emt 0:06:03]} Qe5 {[%emt 0:01:08]} 42. g3 {[%emt 0:07:17]} Be4 {[%emt 0:12:33]} 43. Qxe4 {[%emt 0:02:14]} Qxe4 {[%emt 0:00:05]} 44. Bxe4 {[%emt 0:00:03]} Rxe4 {[%emt 0:00:06]} 45. gxf4 {[%emt 0:00:40]} Rd4 {[%emt 0:04:47]} 46. Kg2 {[%emt 0:09:11]} Rxd5 {[%emt 0:00:25]} 47. Kf3 {[%emt 0:02:03]} Ra5 {[%emt 0:00:12]} 48. Rd1 {[%emt 0:01:07]} Ke6 {[%emt 0:02:52]} 49. Rd2 {[%emt 0:00:17]} h5 {[%emt 0:00:32]} 50. Kg3 {[%emt 0:01:17]} Rf5 {[%emt 0:05:05]} 51. Re2+ {[%emt 0:02:07]} Kd7 {[%emt 0:01:13]} 52. Kf3 {[%emt 0:01:36]} Rf7 {[%emt 0:00:49]} 53. Rh2 {[%emt 0:00:28]} Rf5 {[%emt 0:01:14]} 54. Rg2 {[%emt 0:01:32]} Ra5 {[%emt 0:02:38]} 55. Ke4 {[%emt 0:00:53]} Ke6 {[%emt 0:02:11]} 56. Rg6+ {[%emt 0:00:18]} Ke7 {[%emt 0:01:01]} 57. Rh6 {[%emt 0:00:44]} Rxa2 {[%emt 0:01:00]} 58. Rh7+ {[%emt 0:02:20]} Kf6 {[%emt 0:00:54]} 59. Rh6+ {[%emt 0:00:08]} Kf7 {[%emt 0:00:35]} 60. Rxd6 {[%emt 0:01:42]} Ra4+ {[%emt 0:00:43]} 61. Kf5 {[%emt 0:00:56]} Ra5+ {[%emt 0:00:08]} 62. Ke4 {[%emt 0:00:02]} Ra4+ {[%emt 0:00:58]} 63. Kf5 {[%emt 0:00:01]} Ra5+ {[%emt 0:00:26]} 64. Ke4 {[%emt 0:00:02]} Ra4+ {[%emt 0:00:38]} 1/2-1/2

[Event "EIWCC 2017"]
[Site "Riga"]
[Date "2017.04.15"]
[Round "5"]
[White "Drljevic, Ljilja"]
[Black "Erneste, Inguna"]
[Result "1-0"]
[ECO "A00"]
[WhiteElo "2237"]
[BlackElo "2168"]
[Annotator "NA"]
[PlyCount "69"]
[EventDate "2017.??.??"]
[EventType "swiss"]
[EventCountry "LAT"]
[SourceTitle "playchess.com"]
[Source "ChessBase"]
[SourceQuality "1"]
[TimeControl "40/5400+30:1800+30"]

1. g3 {[%emt 0:00:00]} d5 {[%emt 0:00:49]} 2. Bg2 {[%emt 0:00:00]} Nf6 {[%emt 0:00:55]} 3. Nf3 {[%emt 0:01:14]} Nbd7 {[%emt 0:00:59]} 4. O-O {[%emt 0:02:14]} e5 {[%emt 0:10:26]} 5. d3 {[%emt 0:02:09]} Be7 {[%emt 0:03:16]} 6. Nbd2 {[%emt 0:07:13]} O-O {[%emt 0:01:24]} 7. e4 {[%emt 0:04:10]} dxe4 {[%emt 0:00:33]} 8. dxe4 {[%emt 0:00:03]} c6 {[%emt 0:01:16]} 9. b3 {[%emt 0:00:46]} Qc7 {[%emt 0:07:29]} 10. Bb2 {[%emt 0:01:15] LiveBook: 6 Games} b5 {[%emt 0:00:48]} 11. a3 {[%emt 0:04:45]} Re8 {[%emt 0:07:28]} 12. Nh4 $11 {[%emt 0:12:41]} g6 {[%emt 0:23:32]} 13. Re1 {[%emt 0:05:24]} Nc5 {[%emt 0:04:38]} 14. Nhf3 {[%emt 0:05:20]} Nfd7 {[%emt 0:00:36]} 15. Nf1 {[%emt 0:05:56]} a6 {[%emt 0:04:38]} 16. Ne3 {[%emt 0:08:53]} f6 {[%emt 0:01:01]} 17. Nd2 {[%emt 0:03:55]} Nf8 {[%emt 0:00:11]} 18. a4 {[%emt 0:09:16]} Rb8 {[%emt 0:01:02]} 19. axb5 {[%emt 0:01:25]} axb5 {[%emt 0:00:04]} 20. Bc3 {[%emt 0:07:01]} Nb7 {[%emt 0:03:59]} 21. b4 {[%emt 0:01:47]} Ne6 {[%emt 0:02:52]} 22. Qb1 {[%emt 0:00:36]} Rd8 {[%emt 0:01:31]} 23. Qa2 {[%emt 0:03:23]} Kg7 {[%emt 0:01:15]} 24. Qb2 {[%emt 0:00:03]} Bd7 {[%emt 0:11:08]} 25. f4 {[%emt 0:03:04]} exf4 {[%emt 0:03:33]} 26. Nf5+ {[%emt 0:00:50]} gxf5 {[%emt 0:00:38]} 27. exf5 {[%emt 0:00:03]} Qb6+ {[%emt 0:04:45]} 28. Kh1 {[%emt 0:00:34]} fxg3 {[%emt 0:00:08]} 29. fxe6 {[%emt 0:00:31]} Bc8 {[%emt 0:00:13]} 30. Ne4 {[%emt 0:01:44]} Rf8 {[%emt 0:00:58]} 31. Rf1 {[%emt 0:02:56]} Bxe6 {[%emt 0:02:02]} 32. Bxf6+ {[%emt 0:01:06]} Bxf6 {[%emt 0:00:33]} 33. Nxf6 {[%emt 0:02:10]} Kh6 {[%emt 0:00:53]} 34. Qe5 {[%emt 0:00:24]} Bf7 {[%emt 0:01:14]} 35. Ng4+ {[%emt 0:00:13]} 1-0